bitfinex-derivatives/quotes_SOLF0:USTF0_20250109
["timestamp","ask_amount","ask_price","bid_price","bid_amount"]
[1736424120986,1.4921,191.09,190.98,1.532]
[1736424121187,1.4921,191.09,190.98,3.0859]
[1736424121682,2.6185,191.08,191.01,2.6193]
[1736424121882,1.5583,191.11,191.0,10.53861494]
[1736424122081,10.53861494,191.13,191.0,10.53861494]
[1736424122288,13.60671494,191.16,191.03,10.53861494]
[1736424122984,2.6177,191.14,191.06,10.53861494]
[1736424123191,13.60671494,191.16,191.06,10.53861494]
[1736424123388,12.11941494,191.19,191.06,10.53861494]
[1736424123691,10.53861494,191.19,191.09,10.53861494]
[1736424123885,10.53861494,191.19,191.07,3.1322]
[1736424124086,10.53861494,191.2,191.07,3.1322]
[1736424125181,2.6171,191.17,191.12,2.6177]
[1736424126786,2.6175,191.15,191.09,13.15671494]
[1736424126990,2.6175,191.15,191.07,4.7113]
[1736424127187,10.53861494,191.2,191.07,4.7113]
[1736424127390,2.6173,191.16,191.11,2.6178]
[1736424127890,2.6173,191.16,191.07,4.7113]
[1736424127891,2.6176,191.14,191.09,2.6181]
[1736424128086,10.53861494,191.14,191.03,10.53861494]
[1736424128491,10.53861494,191.14,191.01,3.2378]
[1736424128694,2.6183,191.09,191.04,2.6188]
[1736424128997,10.53861494,191.11,191.01,3.2378]
[1736424129189,2.6181,191.1,191.05,2.6187]
[1736424129494,3.0453,191.13,191.01,3.2378]
[1736424129793,10.53861494,191.11,191.01,3.2378]
[1736424129997,10.53861494,191.11,191.01,1.6289]
[1736424130192,10.53861494,191.08,191.0,44.76455862]
[1736424130493,10.53861494,191.08,191.0,47.38395862]
[1736424130494,2.6189,191.05,191.0,47.38395862]
[1736424130690,2.6189,191.05,191.0,2.6194]
[1736424131287,2.619,191.04,190.99,2.6195]
[1736424131495,10.53861494,191.08,190.97,10.53861494]
[1736424132090,2.6188,191.06,191.01,2.6193]
[1736424132295,10.53861494,191.08,190.97,10.53861494]
[1736424133091,2.6188,191.05,191.0,2.6194]
[1736424134193,2.6191,191.03,190.98,2.6196]
[1736424134495,10.53861494,191.08,190.96,3.1652]
[1736424134897,10.53861494,191.08,191.01,2.6192]
[1736424135501,2.6189,191.05,191.01,2.6192]
[1736424135697,10.53861494,191.08,191.01,2.6192]
[1736424136404,10.53861494,191.08,190.96,3.1652]
[1736424136698,10.53861494,191.08,190.97,10.53861494]
[1736424136897,2.6183,191.09,191.03,2.619]
[1736424137102,10.53861494,191.11,191.0,10.53861494]
[1736424137705,2.6185,191.08,191.03,2.619]
[1736424137904,10.53861494,191.11,191.0,10.53861494]
[1736424138203,10.53861494,191.11,190.97,10.53861494]
[1736424138605,10.53861494,191.11,191.0,10.53861494]
[1736424139201,10.53861494,191.11,190.97,10.53861494]
[1736424139699,10.53861494,191.08,190.97,10.53861494]
[1736424140007,2.6192,191.02,190.97,2.6198]
[1736424140603,10.53861494,191.08,190.96,3.1652]
[1736424140903,2.6193,191.01,190.96,1.5563]
[1736424141109,2.6193,191.01,190.96,4.1762]
[1736424141312,2.6193,191.01,190.96,1.5563]
[1736424142007,2.6191,191.03,190.98,2.6196]
[1736424142610,2.6191,191.03,190.96,1.5563]
[1736424142915,10.53861494,191.08,190.96,1.5563]
[1736424143100,10.53861494,191.08,190.97,10.53861494]
[1736424143299,1.6151,191.1,190.97,10.53861494]
[1736424143503,1.6151,191.1,191.0,10.53861494]
[1736424143706,10.53861494,191.11,191.0,10.53861494]
[1736424144103,16.74861494,191.11,191.0,10.53861494]
[1736424144404,2.6184,191.08,191.03,2.619]
[1736424145004,2.6184,191.08,191.02,2.6191]
[1736424145200,2.6184,191.08,191.0,10.53861494]
[1736424145612,2.6187,191.06,191.01,2.6193]
[1736424145810,16.74861494,191.11,190.97,10.53861494]
[1736424146005,2.6191,191.03,190.99,2.6196]
[1736424146501,10.53861494,191.08,190.97,10.53861494]
[1736424146702,10.53861494,191.08,190.98,2.6197]
[1736424146906,10.53861494,191.08,190.96,1.5563]
[1736424147913,2.6188,191.05,190.97,10.53861494]
[1736424148110,10.53861494,191.08,190.97,10.53861494]
[1736424148507,2.6185,191.07,191.03,2.619]
[1736424149205,16.74861494,191.11,191.0,10.53861494]
[1736424149407,6.21,191.11,191.0,10.53861494]
[1736424149604,6.21,191.11,191.03,10.53861494]
[1736424150307,2.6181,191.1,191.06,2.6186]
[1736424150912,6.21,191.11,191.03,10.53861494]
[1736424151209,6.21,191.11,191.07,2.6184]
[1736424151813,6.21,191.11,191.03,10.53861494]
[1736424152014,6.21,191.11,191.05,2.6187]
[1736424152208,16.74861494,191.11,191.0,10.53861494]
[1736424152706,2.6186,191.07,191.02,2.6191]
[1736424153112,2.6186,191.07,191.03,2.619]
[1736424153708,2.6188,191.06,191.0,10.53861494]
[1736424153912,2.6188,191.06,190.97,15.09861494]
[1736424154116,16.74861494,191.11,190.97,15.09861494]
[1736424154314,2.6185,191.07,191.01,2.6193]
[1736424154614,16.74861494,191.11,191.01,2.6193]
[1736424155115,2.6188,191.06,191.02,2.6191]
[1736424155312,16.74861494,191.11,191.0,10.53861494]
[1736424156006,6.21,191.11,191.0,10.53861494]
[1736424156406,2.6182,191.09,191.05,2.6187]
[1736424156612,6.21,191.11,191.0,10.53861494]
[1736424157116,2.6183,191.09,191.0,10.53861494]
[1736424157510,6.21,191.11,191.0,10.53861494]
[1736424158011,6.21,191.11,191.03,10.53861494]
[1736424158216,8.828,191.11,191.07,2.6184]
[1736424158413,6.21,191.11,191.03,10.53861494]
[1736424158808,6.21,191.11,191.04,1.5548]
[1736424159909,6.21,191.11,191.06,10.53861494]
[1736424161206,6.21,191.11,191.09,2.6181]
[1736424161717,6.21,191.11,191.06,10.53861494]
[1736424162316,6.21,191.11,191.1,2.6181]
[1736424163116,2.6172,191.17,191.13,2.6176]
[1736424164313,2.6173,191.16,191.12,2.6178]
[1736424165110,2.6171,191.18,191.09,10.53861494]
[1736424165621,2.6174,191.16,191.12,2.6178]
[1736424165816,2.6174,191.16,191.09,10.53861494]
[1736424166321,2.6174,191.16,191.11,2.6178]
[1736424166619,10.53861494,191.2,191.06,10.53861494]
[1736424166820,2.6176,191.14,191.09,2.6181]
[1736424167720,2.6174,191.15,191.11,2.6179]
[1736424168016,10.53861494,191.2,191.06,10.53861494]
[1736424170222,2.6173,191.16,191.12,2.6177]
[1736424170414,2.6173,191.16,191.06,10.53861494]
[1736424170617,2.6173,191.16,191.12,2.6177]
[1736424171017,2.6173,191.16,191.06,10.53861494]
[1736424171018,10.53861494,191.2,191.06,10.53861494]
[1736424171321,2.6172,191.17,191.06,10.53861494]
[1736424172517,10.53861494,191.2,191.06,10.53861494]
[1736424172714,10.53861494,191.2,191.05,6.1543]
[1736424173013,10.53861494,191.2,191.08,10.53861494]
[1736424173626,2.6172,191.17,191.13,2.6176]
[1736424174529,10.53861494,191.27,191.14,10.53861494]
[1736424174723,3.11745,191.17,191.14,15.07861494]
[1736424175323,3.0076,191.29,191.14,15.07861494]
[1736424175523,3.0076,191.29,191.18,10.53861494]
[1736424175714,2.616,191.26,191.18,10.53861494]
[1736424177220,3.0076,191.29,191.22,2.6163]
[1736424177423,2.6158,191.27,191.18,10.53861494]
[1736424177826,3.0076,191.29,191.21,2.6165]
[1736424178031,2.6159,191.26,191.21,2.6165]
[1736424178431,2.6159,191.26,191.2,2.6167]
[1736424178629,2.6159,191.26,191.18,10.53861494]
[1736424179227,10.53861494,191.28,191.18,10.53861494]
[1736424179430,10.53861494,191.28,191.15,15.07861494]
[1736424179831,2.6165,191.22,191.17,2.617]
[1736424180531,2.6165,191.22,191.15,15.07861494]
[1736424180832,2.6165,191.22,191.18,2.6169]
[1736424181032,2.6163,191.23,191.15,15.07861494]
[1736424182030,2.6162,191.24,191.19,2.6167]
[1736424183133,2.6164,191.23,191.15,15.07861494]
[1736424183324,10.53861494,191.25,191.15,15.07861494]
[1736424183527,1.6111,191.24,191.13,6.1468]
[1736424183730,1.6111,191.24,191.13,4.54]
[1736424183934,2.6169,191.19,191.15,2.6174]
[1736424184235,10.53861494,191.22,191.15,2.6174]
[1736424184631,2.6168,191.2,191.16,2.6172]
[1736424184825,1.4727,191.21,191.13,4.54]
[1736424185033,1.4727,191.21,191.15,10.53861494]
[1736424185229,1.4727,191.21,191.16,2.6172]
[1736424185534,1.4727,191.21,191.15,10.53861494]
[1736424185734,4.2273,191.24,191.13,4.54]
[1736424185937,12.05561494,191.28,191.16,10.53861494]
[1736424186335,2.6159,191.26,191.22,2.6163]
[1736424187237,12.05561494,191.28,191.16,10.53861494]
[1736424187539,12.05561494,191.28,191.14,1.4936]
[1736424187933,12.05561494,191.28,191.17,2.617]
[1736424188131,10.53861494,191.24,191.13,4.54]
[1736424188335,1.5558,191.23,191.13,4.54]
[1736424188533,2.6168,191.2,191.15,2.6174]
[1736424188737,1.5558,191.23,191.15,2.6174]
[1736424188937,10.53861494,191.21,191.09,1.5]
[1736424189138,10.53861494,191.18,191.07,15.07861494]
[1736424189440,10.53861494,191.18,191.07,4.54]
[1736424189929,10.53861494,191.15,191.04,1.5]
[1736424190336,1.5558,191.14,191.04,1.5]
[1736424190638,1.5558,191.14,191.05,2.6187]
[1736424191035,2.6181,191.11,191.06,2.6186]
[1736424191440,1.5558,191.14,191.03,10.53861494]
[1736424192135,1.5558,191.14,191.07,2.6184]
[1736424192136,2.6178,191.12,191.07,2.6184]
[1736424192440,1.5558,191.14,191.07,2.6184]
[1736424193140,2.618,191.11,191.07,2.6184]
[1736424193536,1.5558,191.14,191.07,2.6184]
[1736424193741,2.6178,191.12,191.07,2.6184]
[1736424194036,1.5558,191.14,191.07,2.6184]
[1736424194540,2.6178,191.12,191.07,2.6184]
[1736424194840,1.5558,191.14,191.07,2.6184]
[1736424195436,2.6181,191.1,191.03,10.53861494]
[1736424195642,1.5558,191.14,191.05,2.6188]
[1736424195946,10.53861494,191.12,191.0,56.88856324]
[1736424196240,2.6186,191.06,191.0,56.88856324]
[1736424196436,3.0096,191.11,191.0,56.88856324]
[1736424197040,2.6185,191.08,191.03,2.619]
[1736424197240,3.0096,191.11,191.0,56.88856324]
[1736424197643,2.6184,191.08,191.02,2.6191]
[1736424197846,3.0096,191.11,191.0,12.12441494]
[1736424198838,2.6184,191.08,191.0,12.12441494]
[1736424199145,3.0096,191.11,191.0,12.12441494]
[1736424199349,2.6183,191.09,191.04,2.6188]
[1736424200443,4.129,191.11,191.07,2.6185]
[1736424202543,2.6181,191.1,191.06,2.6186]
[1736424206043,1.511,191.11,191.03,10.53861494]
[1736424206241,1.511,191.11,191.0,12.12441494]
[1736424206446,1.511,191.11,191.0,10.53861494]
[1736424207245,10.53861494,191.09,190.97,12.07591494]
[1736424207941,2.619,191.04,190.99,2.6195]
[1736424208248,2.619,191.04,190.97,12.07591494]
[1736424208437,2.6188,191.05,191.01,2.6192]
[1736424209751,2.6189,191.04,191.0,2.6194]
[1736424212654,10.53861494,191.09,191.0,2.6194]
[1736424212855,2.6191,191.03,191.0,2.6194]
[1736424213360,10.53861494,191.09,190.97,12.07591494]
[1736424213555,1.511,191.11,190.92,1.513]
[1736424213556,10.53861494,191.06,190.94,10.53861494]
[1736424213858,1.553,191.05,190.94,10.53861494]
[1736424214264,1.553,191.05,190.94,13.15881494]
[1736424214463,5.753,191.05,190.94,10.53861494]
[1736424214758,2.6192,191.02,190.95,2.62]
[1736424214964,5.753,191.05,190.95,2.62]
[1736424215559,2.6197,190.99,190.95,2.62]
[1736424216263,2.6199,190.98,190.94,10.53861494]
[1736424216462,2.6199,190.98,190.93,6.38389081]
[1736424216765,2.6199,190.98,190.93,3.76359081]
[1736424217156,2.6196,190.99,190.94,2.6202]
[1736424217762,10.53861494,191.03,190.94,2.6202]
[1736424217958,10.53861494,191.03,190.93,3.76359081]
[1736424218158,1.6008,191.02,190.93,3.76359081]
[1736424218462,2.6195,191.0,190.93,3.76359081]
[1736424218663,1.6008,191.02,190.93,3.76359081]
[1736424218865,10.53861494,191.0,190.91,1.4807]
[1736424219167,2.6204,190.93,190.91,1.4807]
[1736424219464,10.53861494,191.0,190.91,1.4807]
[1736424220061,15.09861494,191.0,190.86,3.0936]
[1736424220255,10.53861494,190.97,190.86,3.0936]
[1736424220865,2.6206,190.92,190.88,2.621]
[1736424221066,2.6206,190.92,190.85,10.53861494]
[1736424221067,10.53861494,190.97,190.85,10.53861494]
[1736424221462,2.6208,190.91,190.86,2.6213]
[1736424222362,2.6208,190.91,190.85,10.53861494]
[1736424222569,2.6208,190.91,190.87,2.6212]
[1736424226471,2.6206,190.92,190.84,10.53861494]
[1736424226668,10.53861494,190.97,190.88,2.621]
[1736424227072,2.6206,190.92,190.88,2.621]
[1736424227966,10.53861494,190.97,190.84,10.53861494]
[1736424228274,2.6207,190.91,190.87,2.6212]
[1736424228970,2.6206,190.92,190.87,2.6212]
[1736424230973,2.6204,190.94,190.89,2.6209]
[1736424231367,2.6204,190.94,190.87,10.53861494]
[1736424231574,2.6204,190.94,190.89,2.6209]
[1736424231874,10.53861494,190.97,190.89,2.6209]
[1736424232076,10.53861494,191.0,190.9,2.6207]
[1736424232267,10.53861494,191.0,190.87,10.53861494]
[1736424232474,2.6203,190.95,190.87,10.53861494]
[1736424232677,2.6203,190.95,190.91,2.6206]
[1736424233279,2.6203,190.94,190.9,2.6208]
[1736424233577,2.6203,190.94,190.87,10.53861494]
[1736424234378,2.6203,190.94,190.89,2.6209]
[1736424234571,2.6207,190.91,190.87,10.53861494]
[1736424234777,10.53861494,190.97,190.84,10.53861494]
[1736424235079,10.53861494,190.94,190.83,1.5215]
[1736424235277,1.4849,190.93,190.83,1.5215]
[1736424235976,2.6211,190.89,190.85,2.6215]
[1736424237178,2.6213,190.87,190.83,4.1433]
[1736424237574,2.6211,190.88,190.84,2.6216]
[1736424239383,2.6213,190.87,190.84,2.6216]
[1736424239981,2.6211,190.89,190.84,2.6216]
[1736424240181,3.1015,190.93,190.84,2.6216]
[1736424241174,3.1015,190.93,190.83,1.5215]
[1736424241380,12.05011494,190.98,190.84,10.53861494]
[1736424241582,1.5054,190.97,190.84,10.53861494]
[1736424241783,2.6208,190.91,190.87,2.6212]
[1736424242286,10.53861494,190.95,190.84,10.53861494]
[1736424242583,10.53861494,190.92,190.83,1.5215]
[1736424242974,10.53861494,190.92,190.84,2.6216]
[1736424243282,10.53861494,190.92,190.83,1.5215]
[1736424243476,10.53861494,190.92,190.82,3.76570502]
[1736424243677,1.51,190.91,190.78,10.53861494]
[1736424243872,1.51,190.91,190.77,1.5081]
[1736424243873,10.53861494,190.86,190.77,1.5081]
[1736424244080,2.6222,190.8,190.75,10.53861494]
[1736424244280,10.53861494,190.86,190.73,28.98706112]
[1736424244483,2.6225,190.79,190.75,2.6228]
[1736424244682,10.53861494,190.86,190.73,28.98706112]
[1736424244876,10.53861494,190.86,190.72,80.48259665]
[1736424245388,10.53861494,190.86,190.75,2.6228]
[1736424245983,10.53861494,190.83,190.72,69.94398171]
[1736424246180,3.0943,190.82,190.71,1.5081]
[1736424246877,2.6227,190.77,190.72,2.6233]
[1736424247079,3.0943,190.82,190.71,1.5081]
[1736424247286,2.6222,190.8,190.75,2.6228]
[1736424247481,3.0943,190.82,190.72,10.53861494]
[1736424247793,2.6223,190.79,190.75,2.6229]
[1736424248087,3.0943,190.82,190.72,10.53861494]
[1736424248287,5.7162,190.82,190.78,2.6224]
[1736424248687,10.53861494,190.86,190.75,10.53861494]
[1736424249590,2.6218,190.83,190.78,2.6223]
[1736424251589,13.62591494,190.89,190.75,10.53861494]
[1736424251888,2.622,190.82,190.77,2.6226]
[1736424252288,10.53861494,190.86,190.77,2.6226]
[1736424252589,2.6221,190.81,190.76,2.6227]
[1736424252886,2.6225,190.78,190.74,2.623]
[1736424253392,10.53861494,190.83,190.69,10.53861494]
[1736424253595,10.53861494,190.83,190.72,10.53861494]
[1736424254382,10.53861494,190.83,190.75,2.6228]
[1736424254591,10.53861494,190.83,190.69,10.53861494]
[1736424255090,10.53861494,190.83,190.73,2.6231]
[1736424255091,2.6226,190.78,190.73,2.6231]
[1736424255790,9.0826,190.78,190.73,2.6231]
[1736424256093,9.0826,190.78,190.69,10.53861494]
[1736424256094,6.46,190.78,190.69,10.53861494]
[1736424257092,2.623,190.75,190.7,2.6235]
[1736424258189,2.623,190.75,190.71,4.1315]
[1736424258394,2.6228,190.76,190.71,4.1315]
[1736424258590,2.6228,190.76,190.71,1.5081]
[1736424258784,6.46,190.78,190.71,1.5081]
[1736424258785,6.46,190.78,190.71,4.1315]
[1736424259394,6.46,190.78,190.71,2.6234]
[1736424259593,6.46,190.78,190.69,2.6237]
[1736424259893,10.53861494,190.77,190.64,4.56]
[1736424260192,2.6234,190.72,190.67,2.6239]
[1736424260385,10.53861494,190.77,190.67,2.6239]
[1736424260887,10.53861494,190.77,190.68,2.6238]
[1736424261087,10.53861494,190.77,190.66,10.53861494]
[1736424261495,2.623,190.75,190.69,2.6237]
[1736424261693,10.53861494,190.77,190.66,10.53861494]
[1736424261990,10.53861494,190.77,190.7,2.6235]
[1736424261991,2.623,190.74,190.7,2.6235]
[1736424262790,10.53861494,190.77,190.66,10.53861494]
[1736424263291,2.6235,190.71,190.67,2.624]
[1736424263593,10.53861494,190.77,190.63,10.53861494]
[1736424265193,2.6233,190.73,190.63,10.53861494]
[1736424265595,6.46,190.78,190.66,10.53861494]
[1736424265795,6.46,190.78,190.69,10.53861494]
[1736424265985,6.46,190.78,190.72,10.53861494]
[1736424266290,6.46,190.78,190.76,2.6226]
[1736424266492,6.46,190.78,190.72,10.53861494]
[1736424266795,6.46,190.78,190.77,2.6226]
[1736424266990,1.5648,190.78,190.77,2.6226]
[1736424267291,1.5933,190.88,190.77,4.56]
[1736424267495,1.5933,190.88,190.79,10.53861494]
[1736424267699,4.2145,190.88,190.82,2.6219]
[1736424268194,1.5933,190.88,190.83,2.6217]
[1736424268389,1.5933,190.88,190.79,10.53861494]
[1736424269597,2.6213,190.87,190.79,10.53861494]
[1736424269991,1.5933,190.88,190.79,10.53861494]
[1736424271098,1.5933,190.88,190.83,2.6217]
[1736424271294,12.13161494,190.94,190.82,10.53861494]
[1736424271490,13.62511494,190.94,190.82,10.53861494]
[1736424271894,2.6207,190.91,190.85,2.6214]
[1736424272096,2.6207,190.91,190.82,10.53861494]
[1736424273098,2.6209,190.9,190.85,2.6214]
[1736424273300,1.4935,190.94,190.85,10.53861494]
[1736424274389,10.53861494,190.92,190.79,4.56]
[1736424274589,10.53861494,190.92,190.79,15.09861494]
[1736424274999,2.6209,190.9,190.83,2.6217]
[1736424275805,2.621,190.89,190.83,2.6217]
[1736424275997,10.53861494,190.92,190.83,2.6217]
[1736424276195,10.53861494,190.92,190.82,2.6219]
[1736424276395,10.53861494,190.92,190.79,10.53861494]
[1736424276700,1.4991,190.91,190.81,2.6219]
[1736424276900,2.6211,190.88,190.79,10.53861494]
[1736424277402,2.6213,190.87,190.82,2.6218]
[1736424278107,2.6213,190.87,190.81,2.6221]
[1736424278304,1.4991,190.91,190.81,2.6221]
[1736424278802,2.6214,190.86,190.8,2.6222]
[1736424279005,10.53861494,190.89,190.78,1.5854]
[1736424279203,2.6216,190.85,190.78,1.5854]
[1736424279403,2.6216,190.85,190.79,2.6222]
[1736424279810,2.6211,190.88,190.83,2.6217]
[1736424279995,12.03211494,190.94,190.82,10.53861494]
[1736424280403,2.621,190.9,190.84,2.6215]
[1736424280699,12.03211494,190.94,190.84,2.6215]
[1736424281400,2.621,190.89,190.84,2.6215]
[1736424282305,2.621,190.89,190.85,2.6215]
[1736424283410,2.6208,190.9,190.86,2.6213]
[1736424283907,2.6208,190.9,190.82,10.53861494]
[1736424283908,1.4935,190.94,190.85,10.53861494]
[1736424284711,2.6205,190.93,190.89,2.6209]
[1736424285207,10.53861494,191.0,190.88,10.53861494]
[1736424285413,2.62,190.96,190.88,10.53861494]
[1736424285813,1.551,190.99,190.88,10.53861494]
[1736424286109,1.551,190.99,190.91,10.53861494]
[1736424287111,1.551,190.99,190.96,2.62]
[1736424287310,2.6195,191.01,190.96,2.62]
[1736424288214,3.1589,191.03,190.91,10.53861494]
[1736424288618,2.6197,190.99,190.94,2.6202]
[1736424289023,13.69751494,191.03,190.91,10.53861494]
[1736424289423,13.69751494,191.03,190.88,4.58]
[1736424289424,13.69751494,191.03,190.88,15.11861494]
[1736424289818,13.69751494,191.03,190.9,2.6207]
[1736424290518,2.6201,190.96,190.91,2.6207]
[1736424290718,10.53861494,191.0,190.88,15.11861494]
[1736424291222,2.6204,190.94,190.9,2.6208]
[1736424291824,10.53861494,191.0,190.9,2.6208]
[1736424292124,2.6202,190.95,190.9,2.6208]
[1736424293625,2.62,190.96,190.91,2.6206]
[1736424293826,10.53861494,191.0,190.91,2.6206]
[1736424294421,10.53861494,191.0,190.88,10.53861494]
[1736424295117,2.6204,190.94,190.9,2.6208]
[1736424295625,7.4704,190.94,190.9,2.6208]
[1736424296724,7.4704,190.94,190.89,2.6209]
[1736424297428,4.85,190.94,190.89,2.6209]
[1736424297728,2.6204,190.93,190.89,2.6209]
[1736424299321,4.85,190.94,190.88,10.53861494]
[1736424299520,7.4703,190.94,190.9,2.6208]
[1736424299720,7.4703,190.94,190.88,10.53861494]
[1736424299930,7.4703,190.94,190.89,2.6208]
[1736424300128,4.85,190.94,190.88,10.53861494]
[1736424300624,4.85,190.94,190.86,4.56]
[1736424300823,2.6208,190.91,190.85,10.53861494]
[1736424301025,4.85,190.94,190.87,2.6211]
[1736424301418,2.6206,190.92,190.87,2.6211]
[1736424301625,4.85,190.94,190.85,2.6215]
[1736424301829,1.5478,190.93,190.85,2.6215]
[1736424303420,1.5478,190.93,190.84,2.6216]
[1736424303627,1.5478,190.93,190.82,10.53861494]
[1736424304127,10.53861494,190.88,190.79,44.8137048]
[1736424304430,1.5943,190.87,190.79,44.8137048]
[1736424304825,1.5943,190.87,190.79,47.4360048]
[1736424305329,2.6217,190.84,190.8,2.6222]
[1736424305726,1.5943,190.87,190.76,10.53861494]
[1736424306029,2.9769,190.86,190.76,10.53861494]
[1736424306427,2.622,190.82,190.77,2.6226]
[1736424306729,2.9769,190.86,190.74,1.6109]
[1736424306930,2.6221,190.81,190.74,1.6109]
[1736424307732,10.53861494,190.85,190.76,2.6227]
[1736424308133,10.53861494,190.85,190.77,2.6225]
[1736424308430,2.6223,190.8,190.74,1.6109]
[1736424308633,2.9769,190.86,190.74,1.6109]
[1736424309226,10.53861494,190.83,190.73,10.53861494]
[1736424310230,10.53861494,190.83,190.74,2.623]
[1736424310729,10.53861494,190.8,190.68,1.509]
[1736424310930,1.5883,190.79,190.68,1.509]
[1736424312434,1.5883,190.79,190.7,10.53861494]
[1736424312635,1.5883,190.79,190.73,10.53861494]
[1736424312933,2.6219,190.82,190.77,2.6226]
[1736424313130,1.5883,190.84,190.73,10.53861494]
[1736424313531,2.6218,190.83,190.77,2.6225]
[1736424313828,2.6218,190.83,190.73,10.53861494]
[1736424314930,2.6219,190.82,190.77,2.6225]
[1736424315235,1.5883,190.84,190.73,10.53861494]
[1736424316234,1.5883,190.84,190.76,10.53861494]
[1736424316432,4.56,190.91,190.79,10.53861494]
[1736424316735,2.6212,190.88,190.82,2.6219]
[1736424316937,2.6212,190.88,190.79,10.53861494]
[1736424317133,1.6084,190.89,190.79,10.53861494]
[1736424317328,4.2294,190.89,190.84,2.6216]
[1736424317733,1.6084,190.89,190.79,15.09861494]
[1736424317934,1.6084,190.89,190.85,2.6215]
[1736424318745,13.58801494,190.97,190.85,10.53861494]
[1736424318934,1.6084,190.96,190.85,10.53861494]
[1736424319237,1.6084,190.96,190.87,2.6211]
[1736424319636,1.6084,190.96,190.82,10.53861494]
[1736424321340,2.6207,190.92,190.86,2.6213]
[1736424321642,6.8307,190.92,190.86,2.6213]
[1736424322539,4.21,190.92,190.82,10.53861494]
[1736424322736,14.74861494,190.92,190.8,3.163]
[1736424323131,14.74861494,190.92,190.82,10.53861494]
[1736424323833,2.6207,190.91,190.82,10.53861494]
[1736424324843,14.74861494,190.92,190.82,10.53861494]
[1736424325139,14.74861494,190.92,190.8,3.163]
[1736424326142,2.621,190.89,190.84,2.6215]
[1736424326340,14.74861494,190.92,190.82,10.53861494]
[1736424327343,2.6208,190.9,190.85,2.6214]
[1736424329744,14.74861494,190.92,190.8,1.5876]
[1736424330243,14.74861494,190.92,190.84,2.6216]
[1736424330642,2.6212,190.88,190.83,2.6218]
[1736424330839,10.53861494,190.89,190.79,10.53861494]
[1736424331044,10.53861494,190.89,190.76,15.09861494]
[1736424331045,1.4917,190.88,190.76,15.09861494]
[1736424331249,10.53861494,190.86,190.76,15.09861494]
[1736424331744,2.6217,190.84,190.79,2.6222]
[1736424331935,10.53861494,190.86,190.79,2.6222]
[1736424332340,10.53861494,190.86,190.75,1.5405]
[1736424333244,2.6218,190.83,190.78,2.6225]
[1736424334445,2.6218,190.83,190.79,2.6223]
[1736424335339,2.6219,190.82,190.78,2.6224]
[1736424335537,10.53861494,190.86,190.73,10.53861494]
[1736424336139,2.6217,190.84,190.73,10.53861494]
[1736424337047,2.6213,190.87,190.76,10.53861494]
[1736424337248,2.6213,190.87,190.77,1.5207]
[1736424337444,1.4917,190.88,190.79,10.53861494]
[1736424337638,14.74861494,190.92,190.82,10.53861494]
[1736424337837,4.21,190.92,190.82,10.53861494]
[1736424338037,4.21,190.92,190.88,2.621]
[1736424338341,4.21,190.92,190.82,10.53861494]
[1736424338546,4.21,190.92,190.85,10.53861494]
[1736424338745,4.21,190.92,190.88,2.6211]
[1736424338946,4.21,190.92,190.85,10.53861494]
[1736424339349,4.21,190.92,190.88,2.6211]
[1736424341753,6.8306,190.92,190.88,2.6211]
[1736424342054,4.21,190.92,190.85,10.53861494]
[1736424342949,4.21,190.92,190.86,4.56]
[1736424343250,4.21,190.92,190.91,2.6207]
[1736424345450,4.21,190.92,190.86,6.0614]
[1736424346056,4.21,190.92,190.89,2.6208]
[1736424346248,4.21,190.92,190.86,6.0614]
[1736424346444,4.21,190.92,190.86,4.56]
[1736424346750,4.21,190.92,190.89,2.621]
[1736424347654,4.21,190.92,190.9,2.6207]
[1736424347849,4.21,190.92,190.86,4.56]
[1736424348354,4.21,190.92,190.87,1.5352]
[1736424349063,4.21,190.92,190.91,2.6207]
[1736424349955,2.2534,190.92,190.91,2.6207]